fUSD/lending_fUSD_20250209
["ID","MTS","AMOUNT","RATE_DAILY","PERIOD"]
[352414684,1739088673451,-504.0569734,0.00010545,2]
[352414685,1739088673461,-500.0,0.00010545,2]
[352414686,1739088673470,-500.0,0.00010545,2]
[352414687,1739088673480,-500.0,0.00010545,2]
[352414688,1739088673489,-500.0,0.00010545,2]
[352414689,1739088673499,-500.0,0.00010545,2]
[352414690,1739088673508,-500.0,0.00010545,2]
[352414691,1739088673518,-500.0,0.00010545,2]
[352414692,1739088673527,-612.06,0.00010545,2]
[352414693,1739088673536,-500.0,0.00010545,2]
[352414694,1739088673545,-1054.62,0.00010545,2]
[352414695,1739088673557,-503.85118657,0.00010545,2]
[352414696,1739088673568,-706.02,0.00010545,2]
[352414697,1739088673577,-761.46,0.00010545,2]
[352414698,1739088673586,-500.0,0.00010545,2]
[352414699,1739088673596,-508.98,0.00010545,2]
[352414700,1739088673605,-500.0,0.00010545,2]
[352414701,1739088673614,-500.0,0.00010545,2]
[352414702,1739088673623,-524.47,0.00010545,2]
[352414703,1739088673634,-500.0,0.00010545,2]
[352414704,1739088673643,-500.0,0.00010545,2]
[352414705,1739088673652,-500.0,0.00010545,2]
[352414706,1739088673662,-500.0,0.00010545,2]
[352414707,1739088673671,-500.0,0.00010545,2]
[352414708,1739088673680,-500.0,0.00010545,2]
[352414709,1739088673689,-548.63846741,0.00010546,2]
[352414710,1739088673698,-498.42913354,0.00010546,2]
[352414711,1739088673707,-500.0,0.00010546,2]
[352414712,1739088673716,-500.0,0.00010546,2]
[352414713,1739088673725,-500.0,0.00010546,2]
[352414714,1739088673735,-500.0,0.00010546,2]
[352414715,1739088673743,-500.0,0.00010546,2]
[352414716,1739088673752,-301.82,0.00010546,2]
[352414717,1739088673761,-500.0,0.00010546,2]
[352414718,1739088673770,-500.0,0.00010546,2]
[352414719,1739088673779,-500.0,0.00010546,2]
[352414720,1739088673788,-504.3233696,0.00010546,2]
[352414721,1739088673797,-500.0,0.00010546,2]
[352414722,1739088673809,-500.0,0.00010546,2]
[352414723,1739088673828,-500.0,0.00010546,2]
[352414724,1739088673844,-500.0,0.00010546,2]
[352414725,1739088673862,-500.0,0.00010546,2]
[352414726,1739088673880,-500.0,0.00010546,2]
[352414727,1739088673895,-500.0,0.00010546,2]
[352414728,1739088673912,-500.0,0.00010546,2]
[352414729,1739088673931,-508.53686763,0.00010546,2]
[352414730,1739088673949,-500.0,0.00010546,2]
[352414731,1739088673966,-500.0,0.00010546,2]
[352414732,1739088673985,-500.0,0.00010546,2]
[352414733,1739088674000,-500.0,0.00010546,2]
[352414734,1739088674016,-500.0,0.00010546,2]
[352414735,1739088674031,-500.0,0.00010546,2]
[352414736,1739088674046,-500.0,0.00010546,2]
[352414737,1739088674060,-506.75703973,0.00010546,2]
[352414738,1739088674076,-500.0,0.00010546,2]
[352414739,1739088674090,-500.0,0.00010546,2]
[352414740,1739088674104,-500.0,0.00010546,2]
[352414741,1739088674119,-206.02,0.00010546,2]
[352414742,1739088674132,-500.0,0.00010546,2]
[352414743,1739088674147,-500.0,0.00010546,2]
[352414744,1739088674160,-500.0,0.00010546,2]
[352414745,1739088674175,-500.0,0.00010546,2]
[352414746,1739088674189,-552.96,0.00010546,2]
[352414747,1739088674204,-500.0,0.00010546,2]
[352414748,1739088674218,-500.0,0.00010546,2]
[352414749,1739088674233,-500.0,0.00010546,2]
[352414750,1739088674248,-500.0,0.00010546,2]
[352414751,1739088674263,-500.0,0.00010546,2]
[352414752,1739088674277,-500.0,0.00010546,2]
[352414753,1739088674293,-553.17,0.00010546,2]
[352414754,1739088674308,-500.0,0.00010546,2]
[352414755,1739088674323,-338.04,0.00010546,2]
[352414756,1739088674337,-500.0,0.00010546,2]
[352414757,1739088674351,-765.32,0.00010546,2]
[352414758,1739088674366,-500.0,0.00010546,2]
[352414759,1739088674381,-500.0,0.00010546,2]
[352414760,1739088674395,-500.0,0.00010546,2]
[352414761,1739088674411,-663.55,0.00010546,2]
[352414762,1739088674425,-500.0,0.00010546,2]
[352414763,1739088674439,-653.87,0.00010546,2]
[352414764,1739088674454,-500.0,0.00010546,2]
[352414765,1739088674472,-500.0,0.00010546,2]
[352414766,1739088674486,-739.76,0.00010546,2]
[352414767,1739088674501,-500.0,0.00010546,2]
[352414768,1739088674516,-500.0,0.00010546,2]
[352414769,1739088674533,-642.11,0.00010546,2]
[352414770,1739088674551,-971.76,0.00010546,2]
[352414771,1739088674567,-549.67,0.00010546,2]
[352414772,1739088674582,-500.0,0.00010546,2]
[352414773,1739088674601,-500.0,0.00010546,2]
[352414774,1739088674617,-500.0,0.00010546,2]
[352414775,1739088674633,-638.37,0.00010546,2]
[352414776,1739088674650,-607.26556348,0.00010546,2]
[352414777,1739088674665,-500.0,0.00010546,2]
[352414778,1739088674681,-658.41,0.00010546,2]
[352414779,1739088674696,-500.0,0.00010546,2]
[352414780,1739088674711,-573.34,0.00010546,2]
[352414781,1739088674725,-554.89,0.00010546,2]
[352414782,1739088674740,-897.44,0.00010546,2]
[352414783,1739088674755,-739.0,0.00010546,2]
[352414784,1739088674770,-500.0,0.00010546,2]
[352414785,1739088674785,-500.0,0.00010546,2]
[352414786,1739088674802,-500.0,0.00010546,2]
[352414787,1739088674817,-505.84317371,0.00010546,2]
[352414788,1739088674832,-587.16,0.00010546,2]
[352414789,1739088674847,-500.0,0.00010546,2]
[352414790,1739088674861,-500.0,0.00010546,2]
[352414791,1739088674876,-500.0,0.00010546,2]
[352414792,1739088674891,-500.0,0.00010546,2]
[352414793,1739088674905,-500.0,0.00010546,2]
[352414794,1739088674921,-500.0,0.00010546,2]
[352414795,1739088674936,-500.0,0.00010546,2]
[352414796,1739088674950,-500.0,0.00010546,2]
[352414797,1739088674965,-500.0,0.00010546,2]
[352414798,1739088674981,-500.0,0.00010546,2]
[352414799,1739088674996,-500.0,0.00010546,2]
[352414800,1739088675010,-500.0,0.00010546,2]
[352414801,1739088675024,-501.65,0.00010546,2]
[352414802,1739088675038,-596.42302254,0.00010546,2]
[352414803,1739088675052,-500.0,0.00010546,2]
[352414804,1739088675067,-500.0,0.00010546,2]
[352414805,1739088675081,-532.19,0.00010546,2]
[352414806,1739088675259,-500.0,0.00010546,2]
[352414807,1739088675268,-503.32841009,0.00010546,2]
[352414808,1739088675278,-622.57,0.00010546,2]
[352414809,1739088675288,-500.0,0.00010546,2]
[352414810,1739088675297,-500.0,0.00010546,2]
[352414811,1739088675306,-617.96,0.00010546,2]
[352414812,1739088675316,-583.4,0.00010546,2]
[352414813,1739088675325,-500.0,0.00010546,2]
[352414814,1739088675334,-500.0,0.00010546,2]
[352414815,1739088675343,-500.0,0.00010546,2]
[352414816,1739088675352,-500.0,0.00010546,2]
[352414817,1739088675361,-500.0,0.00010546,2]
[352414818,1739088675371,-611.3,0.00010546,2]
[352414819,1739088675380,-555.85,0.00010546,2]
[352414820,1739088675390,-500.0,0.00010546,2]
[352414821,1739088675400,-500.0,0.00010546,2]
[352414822,1739088675409,-500.0,0.00010546,2]
[352414823,1739088675418,-569.97,0.00010546,2]
[352414824,1739088675428,-500.0,0.00010546,2]
[352414825,1739088675437,-500.0,0.00010546,2]
[352414826,1739088675446,-500.0,0.00010546,2]
[352414827,1739088675456,-542.67,0.00010546,2]
[352414828,1739088675465,-500.0,0.00010546,2]
[352414829,1739088675475,-596.07,0.00010546,2]
[352414830,1739088675484,-943.14,0.00010546,2]
[352414831,1739088675493,-1065.5,0.00010546,2]
[352414832,1739088675503,-710.26,0.00010546,2]
[352414833,1739088675512,-500.0,0.00010546,2]
[352414834,1739088675522,-500.0,0.00010546,2]
[352414835,1739088675532,-500.0,0.00010546,2]
[352414836,1739088675541,-500.0,0.00010546,2]
[352414837,1739088675551,-500.0,0.00010546,2]
[352414838,1739088675563,-1077.79,0.00010546,2]
[352414839,1739088675573,-500.0,0.00010546,2]
[352414840,1739088675582,-500.0,0.00010546,2]
[352414841,1739088675591,-679.84,0.00010546,2]
[352414842,1739088675602,-510.62,0.00010546,2]
[352414843,1739088675612,-835.22,0.00010546,2]
[352414844,1739088675621,-500.0,0.00010546,2]
[352414845,1739088675631,-500.0,0.00010546,2]
[352414846,1739088675640,-500.0,0.00010546,2]
[352414847,1739088675650,-500.0,0.00010546,2]
[352414848,1739088675659,-660.51,0.00010546,2]
[352414849,1739088675668,-495.05370095,0.00010546,2]
[352414850,1739088675677,-500.0,0.00010546,2]
[352414851,1739088675686,-601.05,0.00010546,2]
[352414852,1739088675695,-500.0,0.00010546,2]
[352414853,1739088675704,-500.0,0.00010546,2]
[352414854,1739088675713,-500.0,0.00010546,2]
[352414855,1739088675722,-500.0,0.00010546,2]
[352414856,1739088675732,-500.0,0.00010546,2]
[352414857,1739088675741,-500.0,0.00010546,2]
[352414858,1739088675750,-500.0,0.00010546,2]
[352414859,1739088675759,-650.55,0.00010546,2]
[352414860,1739088675768,-500.0,0.00010546,2]
[352414861,1739088675777,-500.0,0.00010546,2]
[352414862,1739088675786,-500.0,0.00010546,2]
[352414863,1739088675796,-500.0,0.00010546,2]
[352414864,1739088675806,-822.9,0.00010546,2]
[352414865,1739088675816,-500.0,0.00010546,2]
[352414866,1739088675825,-526.91,0.00010546,2]
[352414867,1739088675834,-500.0,0.00010546,2]
[352414868,1739088675843,-500.0,0.00010546,2]
[352414869,1739088675853,-500.0,0.00010546,2]
[352414870,1739088675863,-500.0,0.00010546,2]
[352414871,1739088675873,-500.0,0.00010546,2]
[352414872,1739088675882,-500.0,0.00010546,2]
[352414873,1739088675892,-500.0,0.00010546,2]
[352414874,1739088675901,-500.0,0.00010546,2]
[352414875,1739088675912,-500.0,0.00010546,2]
[352414876,1739088675921,-500.0,0.00010546,2]
[352414877,1739088675931,-500.0,0.00010546,2]
[352414878,1739088675942,-541.42,0.00010546,2]
[352414879,1739088675951,-500.0,0.00010546,2]
[352414880,1739088675960,-500.0,0.00010546,2]
[352414881,1739088675970,-711.66,0.00010546,2]
[352414882,1739088675980,-500.0,0.00010546,2]
[352414883,1739088675990,-776.11,0.00010546,2]
[352414884,1739088675999,-500.0,0.00010546,2]
[352414885,1739088676009,-809.89,0.00010546,2]
[352414886,1739088676018,-500.0,0.00010546,2]
[352414887,1739088676028,-781.9,0.00010546,2]
[352414888,1739088676038,-500.0,0.00010547,2]
[352414889,1739088676049,-500.0,0.00010547,2]
[352414890,1739088676059,-615.62,0.00010547,2]
[352414891,1739088676068,-500.0,0.00010547,2]
[352414892,1739088676078,-500.0,0.00010547,2]
[352414893,1739088676089,-500.0,0.00010547,2]
[352414894,1739088676099,-500.0,0.00010547,2]
[352414895,1739088676109,-585.52,0.00010547,2]
[352414896,1739088676119,-500.0,0.00010547,2]
[352414897,1739088676129,-573.32,0.00010547,2]
[352414898,1739088676139,-500.0,0.00010547,2]
[352414899,1739088676148,-631.66,0.00010547,2]
[352414900,1739088676158,-500.0,0.00010547,2]
[352414901,1739088676168,-500.0,0.00010547,2]
[352414902,1739088676178,-500.0,0.00010547,2]
[352414903,1739088676188,-500.0,0.00010547,2]
[352414904,1739088676198,-500.0,0.00010547,2]
[352414905,1739088676208,-500.0,0.00010547,2]
[352414906,1739088676218,-500.0,0.00010547,2]
[352414907,1739088676227,-500.0,0.00010547,2]
[352414908,1739088676237,-500.0,0.00010547,2]
[352414909,1739088676247,-500.0,0.00010547,2]
[352414910,1739088676256,-2431.92,0.00010547,2]
[352414911,1739088676266,-500.0,0.00010547,2]
[352414912,1739088676275,-500.0,0.00010547,2]
[352414913,1739088676285,-500.0,0.00010547,2]
[352414914,1739088676295,-602.13,0.00010547,2]
[352414915,1739088676305,-500.0,0.00010547,2]
[352414916,1739088676314,-500.0,0.00010547,2]
[352414917,1739088676324,-500.0,0.00010547,2]
[352414918,1739088676334,-500.0,0.00010547,2]
[352414919,1739088676344,-500.0,0.00010547,2]
[352414920,1739088676353,-557.76,0.00010547,2]
[352414921,1739088676363,-884.11,0.00010547,2]
[352414922,1739088676373,-423.51,0.0001057,2]
[352414923,1739088676383,-192.61101552,0.00010582,2]
[352414924,1739088676392,-1550.58825958,0.00010584,2]
[352414925,1739088676402,-1343.94,0.0001061,2]
[352414926,1739088676412,-200.0,0.00010614,2]
[352414927,1739088676421,-162.96716138,0.00010616,2]
[352414928,1739088676431,-500.0,0.0001063,2]
[352414929,1739088676441,-431.7357272,0.00010654,2]
[352414930,1739088676451,-1000.0,0.00010655,2]
[352414931,1739088676460,-3908.81516632,0.00010657,2]
[352414932,1739088676470,-597.16620646,0.0001066,2]
[352414933,1739088676479,-170.22206002,0.00010662,2]
[352414934,1739088676490,-500.0,0.00010682,2]
[352414935,1739088676500,-500.0,0.00010682,2]
[352414936,1739088676510,-500.0,0.00010682,2]
[352414937,1739088676519,-511.13,0.00010682,2]
[352414938,1739088676530,-500.0,0.00010682,2]
[352414939,1739088676539,-500.0,0.00010682,2]
[352414940,1739088676550,-500.0,0.00010682,2]
[352414941,1739088676564,-500.0,0.00010682,2]
[352414942,1739088676574,-500.0,0.00010682,2]
[352414943,1739088676583,-611.23,0.00010682,2]
[352414944,1739088676593,-537.48,0.00010682,2]
[352414945,1739088676603,-600.68,0.00010682,2]
[352414946,1739088676612,-500.0,0.00010682,2]
[352414947,1739088676622,-500.0,0.00010682,2]
[352414948,1739088676632,-500.0,0.00010682,2]
[352414949,1739088676643,-500.0,0.00010682,2]
[352414950,1739088676652,-500.0,0.00010682,2]
[352414951,1739088676661,-610.25,0.00010682,2]
[352414952,1739088676671,-500.0,0.00010682,2]
[352414953,1739088676680,-500.0,0.00010682,2]
[352414954,1739088676689,-500.0,0.00010682,2]
[352414955,1739088676698,-527.98,0.00010682,2]
[352414956,1739088676708,-500.0,0.00010682,2]
[352414957,1739088676718,-500.0,0.00010682,2]
[352414958,1739088676729,-500.0,0.00010682,2]
[352414959,1739088676738,-500.0,0.00010682,2]
[352414960,1739088676748,-500.0,0.00010682,2]
[352414961,1739088676758,-580.54,0.00010682,2]
[352414962,1739088676767,-500.0,0.00010682,2]
[352414963,1739088676777,-595.91,0.00010682,2]
[352414964,1739088676787,-500.0,0.00010682,2]
[352414965,1739088676797,-500.0,0.00010682,2]
[352414966,1739088676807,-500.0,0.00010682,2]
[352414967,1739088676816,-500.0,0.00010682,2]
[352414968,1739088676826,-162.45454772,0.00010682,2]
[352414981,1739088995676,-1000.0,0.0001232,6]
[352414985,1739089362333,150.23992503,0.00012128,5]
[352414995,1739089694443,164.87412633,0.0002,120]
[352415007,1739089832186,-583.0584883,8.219e-05,2]
[352415008,1739089832198,-49.4515117,8.219e-05,2]
[352415009,1739089832209,-884.8204883,9.314e-05,2]
[352415011,1739089840141,-115.1795117,9.314e-05,2]
[352415012,1739089840151,-167.89,9.314e-05,2]
[352415013,1739089840161,-95.87883885,9.346e-05,2]
[352415014,1739089840173,-182.27116115,9.346e-05,2]
[352415015,1739089840183,-351.76883883,9.52e-05,2]
[352415022,1739089843232,-444.56116117,9.52e-05,2]
[352415023,1739089843241,-167.51,9.521e-05,2]
[352415024,1739089843250,-500.0,9.781e-05,2]
[352415025,1739089843259,-250.0,9.787e-05,2]
[352415026,1739089843268,-20814.0,9.811e-05,2]
[352415027,1739089843277,-500.0,9.997e-05,2]
[352415028,1739089843286,-500.0,9.997e-05,2]
[352415029,1739089843295,-500.0,9.997e-05,2]
[352415030,1739089843304,-500.0,9.997e-05,2]
[352415031,1739089843314,-500.0,9.997e-05,2]
[352415032,1739089843323,-500.0,9.997e-05,2]
[352415033,1739089843333,-500.0,9.997e-05,2]
[352415034,1739089843342,-515.09,9.997e-05,2]
[352415035,1739089843352,-500.0,9.997e-05,2]
[352415036,1739089843361,-500.0,9.997e-05,2]
[352415037,1739089843370,-500.0,9.997e-05,2]
[352415038,1739089843379,-500.0,9.997e-05,2]
[352415039,1739089843389,-500.0,9.997e-05,2]
[352415040,1739089843398,-500.0,9.997e-05,2]
[352415041,1739089843407,-500.0,9.997e-05,2]
[352415042,1739089843417,-500.0,9.997e-05,2]
[352415043,1739089843426,-206.85814571,9.997e-05,2]
[352415044,1739089843436,-299.48069299,9.997e-05,2]
[352415085,1739090307761,415.96202168,0.000124,5]
[352415103,1739091040424,-349.0304,8.219e-05,2]
[352415104,1739091040478,-251.8496,8.219e-05,2]
[352415105,1739091040488,-201.91,9.141e-05,2]
[352415106,1739091040506,-300.0,9.141e-05,2]
[352415107,1739091040515,-637.06,9.179e-05,2]
[352415108,1739091040524,-26.3086149,9.185e-05,2]
[352415109,1739091040536,-208.5813851,9.185e-05,2]
[352415110,1739091040545,-167.51,9.23e-05,2]
[352415111,1739091040555,-598.3236149,9.236e-05,2]
[352415115,1739091043346,-401.6763851,9.236e-05,2]
[352415116,1739091043355,-250.0,9.287e-05,2]
[352415117,1739091043365,-150.0,9.378e-05,2]
[352415118,1739091043376,-150.0,9.378e-05,2]
[352415119,1739091043386,-288.42,9.396e-05,2]
[352415120,1739091043395,-500.0,9.507e-05,2]
[352415121,1739091043404,-300.0,9.972e-05,2]
[352415122,1739091043415,-150.0,9.973e-05,2]
[352415123,1739091043425,-14797.92,9.973e-05,2]
[352415124,1739091043435,-2905.786,9.997e-05,2]
[352415125,1739091043444,-174.132,9.997e-05,2]
[352415126,1739091043453,-438.25,0.0001,2]
[352415127,1739091043463,-4000.0,0.0001,2]
[352415128,1739091043474,-638.36410683,0.00010033,2]
[352415129,1739091043492,-162.96716138,0.00010126,2]
[352415130,1739091043502,-1290.37,0.00010131,2]
[352415131,1739091043512,-1232.73,0.00010131,2]
[352415132,1739091043522,-650.98,0.00010131,2]
[352415133,1739091043531,-936.12,0.00010131,2]
[352415134,1739091043541,-887.89,0.00010131,2]
[352415135,1739091043550,-812.49,0.00010131,2]
[352415136,1739091043560,-1619.99,0.00010131,2]
[352415137,1739091043569,-500.0,0.00010131,2]
[352415138,1739091043578,-1614.19,0.00010131,2]
[352415139,1739091043588,-1286.74,0.00010131,2]
[352415140,1739091043597,-500.0,0.00010131,2]
[352415141,1739091043607,-606.94,0.00010131,2]
[352415142,1739091043616,-1486.51,0.00010131,2]
[352415143,1739091043626,-1746.19,0.00010131,2]
[352415144,1739091043635,-1788.17,0.00010131,2]
[352415145,1739091043644,-1449.34,0.00010131,2]
[352415146,1739091043653,-500.0,0.00010131,2]
[352415147,1739091043663,-1644.83,0.00010131,2]
[352415148,1739091043672,-500.0,0.00010131,2]
[352415149,1739091043682,-1769.26,0.00010131,2]
[352415150,1739091043692,-727.7,0.00010131,2]
[352415151,1739091043702,-500.0,0.00010131,2]
[352415152,1739091043712,-500.0,0.00010131,2]
[352415153,1739091043724,-500.0,0.00010131,2]
[352415154,1739091043736,-1201.81,0.00010131,2]
[352415155,1739091043754,-1437.52,0.00010131,2]
[352415156,1739091043764,-659.24,0.00010131,2]
[352415157,1739091043774,-500.0,0.00010131,2]
[352415158,1739091043783,-688.72,0.00010131,2]
[352415159,1739091043793,-823.78,0.00010131,2]
[352415160,1739091043803,-500.0,0.00010131,2]
[352415161,1739091043813,-393.879823,0.00010132,2]
[352415162,1739091043824,-251.91712,0.00010132,2]
[352415163,1739091043834,-500.0,0.00010132,2]
[352415164,1739091043843,-153.775182,0.00010132,2]
[352415165,1739091043852,-500.0,0.00010132,2]
[352415166,1739091043862,-500.0,0.00010132,2]
[352415167,1739091043872,-500.0,0.00010132,2]
[352415168,1739091043881,-500.0,0.00010132,2]
[352415169,1739091043891,-500.09,0.00010132,2]
[352415170,1739091043900,-500.0,0.00010132,2]
[352415171,1739091043909,-500.0,0.00010132,2]
[352415172,1739091043919,-507.52,0.00010132,2]
[352415173,1739091043929,-500.0,0.00010132,2]
[352415174,1739091043938,-500.0,0.00010132,2]
[352415175,1739091043948,-500.0,0.00010132,2]
[352415177,1739091043957,-500.0,0.00010132,2]
[352415178,1739091043967,-500.0,0.00010132,2]
[352415179,1739091043977,-500.0,0.00010132,2]
[352415180,1739091043987,-608.75,0.00010132,2]
[352415181,1739091043996,-500.0,0.00010132,2]
[352415182,1739091044007,-500.0,0.00010132,2]
[352415183,1739091044016,-500.0,0.00010132,2]
[352415184,1739091044025,-500.0,0.00010132,2]
[352415185,1739091044034,-500.0,0.00010132,2]
[352415186,1739091044044,-500.0,0.00010132,2]
[352415187,1739091044053,-500.0,0.00010132,2]
[352415188,1739091044063,-157.345131,0.00010132,2]
[352415189,1739091044072,-500.0,0.00010132,2]
[352415190,1739091044081,-500.0,0.00010132,2]
[352415191,1739091044091,-500.0,0.00010132,2]
[352415192,1739091044100,-153.775169,0.00010132,2]
[352415193,1739091044110,-500.0,0.00010132,2]
[352415194,1739091044120,-500.0,0.00010132,2]
[352415195,1739091044130,-500.0,0.00010132,2]
[352415196,1739091044139,-500.0,0.00010132,2]
[352415197,1739091044149,-500.0,0.00010132,2]
[352415198,1739091044158,-500.0,0.00010132,2]
[352415199,1739091044168,-650.23,0.00010132,2]
[352415200,1739091044177,-500.0,0.00010132,2]
[352415201,1739091044187,-500.0,0.00010132,2]
[352415202,1739091044196,-500.0,0.00010132,2]
[352415203,1739091044206,-500.0,0.00010132,2]
[352415204,1739091044215,-695.23,0.00010132,2]
[352415205,1739091044226,-500.0,0.00010132,2]
[352415206,1739091044236,-500.0,0.00010132,2]
[352415207,1739091044245,-500.0,0.00010132,2]
[352415208,1739091044255,-500.0,0.00010132,2]
[352415209,1739091044265,-674.96,0.00010132,2]
[352415210,1739091044273,-513.36,0.00010132,2]
[352415211,1739091044283,-500.0,0.00010132,2]
[352415212,1739091044292,-578.86,0.00010132,2]
[352415213,1739091044302,-157.345131,0.00010132,2]
[352415214,1739091044311,-500.0,0.00010132,2]
[352415215,1739091044321,-500.0,0.00010132,2]
[352415216,1739091044332,-500.0,0.00010132,2]
[352415217,1739091044343,-500.0,0.00010132,2]
[352415218,1739091044353,-500.0,0.00010132,2]
[352415219,1739091044362,-500.0,0.00010132,2]
[352415220,1739091044371,-500.0,0.00010132,2]
[352415221,1739091044381,-498.51256262,0.00010132,2]
[352415222,1739091044391,-821.75,0.00010132,2]
[352415223,1739091044400,-500.0,0.00010132,2]
[352415224,1739091044410,-241.424871,0.00010132,2]
[352415225,1739091044420,-500.0,0.00010132,2]
[352415226,1739091044430,-502.74491306,0.00010132,2]
[352415227,1739091044439,-504.12468518,0.00010132,2]
[352415228,1739091044449,-500.0,0.00010132,2]
[352415229,1739091044458,-500.0,0.00010132,2]
[352415230,1739091044467,-595.98482865,0.00010132,2]
[352415231,1739091044479,-500.0,0.00010132,2]
[352415232,1739091044490,-500.0,0.00010132,2]
[352415233,1739091044504,-500.0,0.00010132,2]
[352415234,1739091044514,-608.97,0.00010132,2]
[352415235,1739091044523,-500.0,0.00010132,2]
[352415236,1739091044533,-502.06875303,0.00010132,2]
[352415237,1739091044543,-500.0,0.00010132,2]
[352415238,1739091044552,-500.0,0.00010132,2]
[352415239,1739091044561,-500.0,0.00010132,2]
[352415240,1739091044572,-500.0,0.00010132,2]
[352415241,1739091044582,-500.0,0.00010132,2]
[352415242,1739091044591,-500.0,0.00010132,2]
[352415243,1739091044600,-685.97,0.00010132,2]
[352415244,1739091044610,-500.0,0.00010132,2]
[352415245,1739091044619,-500.0,0.00010132,2]
[352415246,1739091044629,-500.0,0.00010132,2]
[352415247,1739091044638,-500.0,0.00010132,2]
[352415248,1739091044647,-562.27,0.00010132,2]
[352415249,1739091044656,-500.0,0.00010132,2]
[352415250,1739091044666,-834.9,0.00010132,2]
[352415251,1739091044675,-566.01,0.00010132,2]
[352415252,1739091044685,-501.66654005,0.00010132,2]
[352415253,1739091044694,-738.92,0.00010132,2]
[352415254,1739091044704,-500.0,0.00010132,2]
[352415255,1739091044714,-500.0,0.00010132,2]
[352415256,1739091044726,-500.0,0.00010132,2]
[352415257,1739091044736,-500.0,0.00010132,2]
[352415258,1739091044746,-500.0,0.00010132,2]
[352415259,1739091044755,-776.51,0.00010132,2]
[352415260,1739091044765,-505.2696103,0.00010132,2]
[352415261,1739091044776,-500.0,0.00010132,2]
[352415262,1739091044789,-500.0,0.00010132,2]
[352415263,1739091044798,-500.0,0.00010132,2]
[352415264,1739091044809,-500.0,0.00010132,2]
[352415265,1739091044819,-1288.32,0.00010132,2]
[352415266,1739091044828,-577.78,0.00010132,2]
[352415267,1739091044838,-638.7,0.00010132,2]
[352415268,1739091044847,-1745.54,0.00010132,2]
[352415269,1739091044857,-505.31948539,0.00010132,2]
[352415270,1739091044867,-500.0,0.00010132,2]
[352415271,1739091044876,-500.0,0.00010132,2]
[352415272,1739091044886,-500.0,0.00010132,2]
[352415273,1739091044895,-500.0,0.00010132,2]
[352415274,1739091044905,-503.85740636,0.00010132,2]
[352415275,1739091044915,-500.0,0.00010132,2]
[352415276,1739091044925,-500.0,0.00010132,2]
[352415277,1739091044934,-500.0,0.00010132,2]
[352415278,1739091044944,-500.0,0.00010132,2]
[352415279,1739091044955,-543.04848802,0.00010132,2]
[352415280,1739091044965,-500.0,0.00010132,2]
[352415281,1739091044976,-500.0,0.00010132,2]
[352415282,1739091044986,-157.345131,0.00010132,2]
[352415283,1739091044995,-500.0,0.00010132,2]
[352415284,1739091045005,-1627.73,0.00010132,2]
[352415285,1739091045015,-500.0,0.00010132,2]
[352415286,1739091045024,-665.6,0.00010132,2]